{"text_format":"1","workbook":"xlsx","n_sheets":1,"sheets":["Лист1"],"not_rendered":{"charts":0,"images":0,"macros":1,"external_links":0,"defined_names":0,"comments":0,"pivot_tables":0},"unopened":[],"bounds":{"document_bytes":16777216,"sheet_cells":100000,"rows_first":2000,"rows_last":500,"rows_between":2000,"halvings":0,"cell_chars":16384,"cell_head_chars":4096},"cells_cut":0,"cells_raw":0,"read":"whole","date_system":"1900"}

{"sheet":"Лист1","index":0,"n_rows":34,"n_cols":22,"rows_kept":34,"cut":false,"hidden":false,"merged":[]}
["Title","Category","Sku","Shot description","Instructions","Warranty","Year","Make","Model","Fitment","Vehicle Option","Instalation","Instalation Notes","URL","Series\n\n","Old part","Boot Included","Finish","Internal Design","Lower Mount Type","Upper Mount Type","Descriptoon"]
["Bilstein 4600 Series Shock Absorber - Jeep CJ5 CJ8 ;F;B6","Shocks and Struts","24-002509","The Bilstein 24-002509, 4600 Series Shock Absorber are the ideal choice for drivers who want improved handling and stability in their full-size sedans, SUVs and trucks.","http://cart.bilsteinus.com/pdfs/E4-WM5-Y217A00.pdf","http://cart.bilsteinus.com/pdfs/limitedlifetimewarranty.pdf",1983,"Jeep","CJ5 Base","Jeep CJ5 Base 1959 - 1983",null,{"$f":"ExtractCat(M2,$L$33:$L$34)","v":"Front"},"Position: Front\n\nDescriptor: Series: 4600 Series\n\nDescriptor: Excludes 5 leaf front","http://www.truckspring.com/products/Bilstein-4600-Series-Rear-Shock-Absorber-GM__24-002509.aspx","4600 Series","F4-B46-0250-H0,F4-B46-0250-H1","Blue straight","Yellow paint","Monotube","Eye 16mm","Eye 16mm","Bilstein 4600 Series Shock Absorbers and Struts are designed\n\nspecifically to help your truck, van or SUV reach its pinnacle in ride\n\nperformance and handling, while still providing the comfortable ride\n\nthat has come to be expected from the name.\n\nA Bilstein 4600 Series equipped vehicle offers superior control\n\ncompared to conventional alternatives, allowing you to keep cargo secure-from\n\nyour kids to work equipment, mile after mile. Utilizing our patented\n\ndesign, the dampers allow the vehicle to glide over every type of road\n\nsurface you may encounter while maintaining complete command at all\n\ntimes. These dampers are the least expensive and most effective upgrade\n\nto extend the service life of any vehicle out on the road today.\n\n\n\n\n\n\n\n\n\n\n\n\n\n"]
["Bilstein 4600 Series Shock Absorber - Jeep CJ5 CJ8 ;F;B6","Shocks and Struts","24-002509","The Bilstein 24-002509, 4600 Series Shock Absorber are the ideal choice for drivers who want improved handling and stability in their full-size sedans, SUVs and trucks.","http://cart.bilsteinus.com/pdfs/E4-WM5-Y217A00.pdf","http://cart.bilsteinus.com/pdfs/limitedlifetimewarranty.pdf",1975,"Jeep","CJ5 Renegade","Jeep CJ5 Renegade 1975 - 1983",null,{"$f":"ExtractCat(M3,$L$33:$L$34)","v":"Front"},"Position: Front\n\nDescriptor: Series: 4600 Series\n\nDescriptor: Excludes 5 leaf front","http://www.truckspring.com/products/Bilstein-4600-Series-Rear-Shock-Absorber-GM__24-002509.aspx","4600 Series","F4-B46-0250-H0,F4-B46-0250-H1","Blue straight","Yellow paint","Monotube","Eye 16mm","Eye 16mm","Bilstein 4600 Series Shock Absorbers and Struts are designed\n\nspecifically to help your truck, van or SUV reach its pinnacle in ride\n\nperformance and handling, while still providing the comfortable ride\n\nthat has come to be expected from the name.\n\nA Bilstein 4600 Series equipped vehicle offers superior control\n\ncompared to conventional alternatives, allowing you to keep cargo secure-from\n\nyour kids to work equipment, mile after mile. Utilizing our patented\n\ndesign, the dampers allow the vehicle to glide over every type of road\n\nsurface you may encounter while maintaining complete command at all\n\ntimes. These dampers are the least expensive and most effective upgrade\n\nto extend the service life of any vehicle out on the road today.\n\n\n\n\n\n\n\n\n\n\n\n\n\n"]
["Bilstein 4600 Series Shock Absorber - Jeep CJ5 CJ8 ;F;B6","Shocks and Struts","24-002509","The Bilstein 24-002509, 4600 Series Shock Absorber are the ideal choice for drivers who want improved handling and stability in their full-size sedans, SUVs and trucks.","http://cart.bilsteinus.com/pdfs/E4-WM5-Y217A00.pdf","http://cart.bilsteinus.com/pdfs/limitedlifetimewarranty.pdf",1982,"Jeep","CJ5 Base","Jeep CJ5 Base 1959 - 1983",null,"Front","Position: Front\n\nDescriptor: Series: 4600 Series\n\nDescriptor: Excludes 5 leaf front","http://www.truckspring.com/products/Bilstein-4600-Series-Rear-Shock-Absorber-GM__24-002509.aspx","4600 Series","F4-B46-0250-H0,F4-B46-0250-H1","Blue straight","Yellow paint","Monotube","Eye 16mm","Eye 16mm","Bilstein 4600 Series Shock Absorbers and Struts are designed\n\nspecifically to help your truck, van or SUV reach its pinnacle in ride\n\nperformance and handling, while still providing the comfortable ride\n\nthat has come to be expected from the name.\n\nA Bilstein 4600 Series equipped vehicle offers superior control\n\ncompared to conventional alternatives, allowing you to keep cargo secure-from\n\nyour kids to work equipment, mile after mile. Utilizing our patented\n\ndesign, the dampers allow the vehicle to glide over every type of road\n\nsurface you may encounter while maintaining complete command at all\n\ntimes. These dampers are the least expensive and most effective upgrade\n\nto extend the service life of any vehicle out on the road today.\n\n\n\n\n\n\n\n\n\n\n\n\n\n"]
["Bilstein 4600 Series Shock Absorber - Jeep CJ5 CJ8 ;F;B6","Shocks and Struts","24-002509","The Bilstein 24-002509, 4600 Series Shock Absorber are the ideal choice for drivers who want improved handling and stability in their full-size sedans, SUVs and trucks.","http://cart.bilsteinus.com/pdfs/E4-WM5-Y217A00.pdf","http://cart.bilsteinus.com/pdfs/limitedlifetimewarranty.pdf",1976,"Jeep","CJ5 Renegade","Jeep CJ5 Renegade 1975 - 1983",null,"Front","Position: Front\n\nDescriptor: Series: 4600 Series\n\nDescriptor: Excludes 5 leaf front","http://www.truckspring.com/products/Bilstein-4600-Series-Rear-Shock-Absorber-GM__24-002509.aspx","4600 Series","F4-B46-0250-H0,F4-B46-0250-H1","Blue straight","Yellow paint","Monotube","Eye 16mm","Eye 16mm","Bilstein 4600 Series Shock Absorbers and Struts are designed\n\nspecifically to help your truck, van or SUV reach its pinnacle in ride\n\nperformance and handling, while still providing the comfortable ride\n\nthat has come to be expected from the name.\n\nA Bilstein 4600 Series equipped vehicle offers superior control\n\ncompared to conventional alternatives, allowing you to keep cargo secure-from\n\nyour kids to work equipment, mile after mile. Utilizing our patented\n\ndesign, the dampers allow the vehicle to glide over every type of road\n\nsurface you may encounter while maintaining complete command at all\n\ntimes. These dampers are the least expensive and most effective upgrade\n\nto extend the service life of any vehicle out on the road today.\n\n\n\n\n\n\n\n\n\n\n\n\n\n"]
["Bilstein 4600 Series Shock Absorber - Jeep CJ5 CJ8 ;F;B6","Shocks and Struts","24-002509","The Bilstein 24-002509, 4600 Series Shock Absorber are the ideal choice for drivers who want improved handling and stability in their full-size sedans, SUVs and trucks.","http://cart.bilsteinus.com/pdfs/E4-WM5-Y217A00.pdf","http://cart.bilsteinus.com/pdfs/limitedlifetimewarranty.pdf",1981,"Jeep","CJ5 Base","Jeep CJ5 Base 1959 - 1983",null,"Front","Position: Front\n\nDescriptor: Series: 4600 Series\n\nDescriptor: Excludes 5 leaf front","http://www.truckspring.com/products/Bilstein-4600-Series-Rear-Shock-Absorber-GM__24-002509.aspx","4600 Series","F4-B46-0250-H0,F4-B46-0250-H1","Blue straight","Yellow paint","Monotube","Eye 16mm","Eye 16mm","Bilstein 4600 Series Shock Absorbers and Struts are designed\n\nspecifically to help your truck, van or SUV reach its pinnacle in ride\n\nperformance and handling, while still providing the comfortable ride\n\nthat has come to be expected from the name.\n\nA Bilstein 4600 Series equipped vehicle offers superior control\n\ncompared to conventional alternatives, allowing you to keep cargo secure-from\n\nyour kids to work equipment, mile after mile. Utilizing our patented\n\ndesign, the dampers allow the vehicle to glide over every type of road\n\nsurface you may encounter while maintaining complete command at all\n\ntimes. These dampers are the least expensive and most effective upgrade\n\nto extend the service life of any vehicle out on the road today.\n\n\n\n\n\n\n\n\n\n\n\n\n\n"]
["Bilstein 4600 Series Shock Absorber - Jeep CJ5 CJ8 ;F;B6","Shocks and Struts","24-002509","The Bilstein 24-002509, 4600 Series Shock Absorber are the ideal choice for drivers who want improved handling and stability in their full-size sedans, SUVs and trucks.","http://cart.bilsteinus.com/pdfs/E4-WM5-Y217A00.pdf","http://cart.bilsteinus.com/pdfs/limitedlifetimewarranty.pdf",1977,"Jeep","CJ5 Golden Eagle","Jeep CJ5 Golden Eagle 1977 - 1980",null,"Front","Position: Front\n\nDescriptor: Series: 4600 Series\n\nDescriptor: Excludes 5 leaf front","http://www.truckspring.com/products/Bilstein-4600-Series-Rear-Shock-Absorber-GM__24-002509.aspx","4600 Series","F4-B46-0250-H0,F4-B46-0250-H1","Blue straight","Yellow paint","Monotube","Eye 16mm","Eye 16mm","Bilstein 4600 Series Shock Absorbers and Struts are designed\n\nspecifically to help your truck, van or SUV reach its pinnacle in ride\n\nperformance and handling, while still providing the comfortable ride\n\nthat has come to be expected from the name.\n\nA Bilstein 4600 Series equipped vehicle offers superior control\n\ncompared to conventional alternatives, allowing you to keep cargo secure-from\n\nyour kids to work equipment, mile after mile. Utilizing our patented\n\ndesign, the dampers allow the vehicle to glide over every type of road\n\nsurface you may encounter while maintaining complete command at all\n\ntimes. These dampers are the least expensive and most effective upgrade\n\nto extend the service life of any vehicle out on the road today.\n\n\n\n\n\n\n\n\n\n\n\n\n\n"]
["Bilstein 4600 Series Shock Absorber - Jeep CJ5 CJ8 ;F;B6","Shocks and Struts","24-002509","The Bilstein 24-002509, 4600 Series Shock Absorber are the ideal choice for drivers who want improved handling and stability in their full-size sedans, SUVs and trucks.","http://cart.bilsteinus.com/pdfs/E4-WM5-Y217A00.pdf","http://cart.bilsteinus.com/pdfs/limitedlifetimewarranty.pdf",1980,"Jeep","CJ5 Base","Jeep CJ5 Base 1959 - 1983",null,"Front","Position: Front\n\nDescriptor: Series: 4600 Series\n\nDescriptor: Excludes 5 leaf front","http://www.truckspring.com/products/Bilstein-4600-Series-Rear-Shock-Absorber-GM__24-002509.aspx","4600 Series","F4-B46-0250-H0,F4-B46-0250-H1","Blue straight","Yellow paint","Monotube","Eye 16mm","Eye 16mm","Bilstein 4600 Series Shock Absorbers and Struts are designed\n\nspecifically to help your truck, van or SUV reach its pinnacle in ride\n\nperformance and handling, while still providing the comfortable ride\n\nthat has come to be expected from the name.\n\nA Bilstein 4600 Series equipped vehicle offers superior control\n\ncompared to conventional alternatives, allowing you to keep cargo secure-from\n\nyour kids to work equipment, mile after mile. Utilizing our patented\n\ndesign, the dampers allow the vehicle to glide over every type of road\n\nsurface you may encounter while maintaining complete command at all\n\ntimes. These dampers are the least expensive and most effective upgrade\n\nto extend the service life of any vehicle out on the road today.\n\n\n\n\n\n\n\n\n\n\n\n\n\n"]
["Bilstein 4600 Series Shock Absorber - Jeep CJ5 CJ8 ;F;B6","Shocks and Struts","24-002509","The Bilstein 24-002509, 4600 Series Shock Absorber are the ideal choice for drivers who want improved handling and stability in their full-size sedans, SUVs and trucks.","http://cart.bilsteinus.com/pdfs/E4-WM5-Y217A00.pdf","http://cart.bilsteinus.com/pdfs/limitedlifetimewarranty.pdf",1979,"Jeep","CJ5 Base","Jeep CJ5 Base 1959 - 1983",null,"Front","Position: Front\n\nDescriptor: Series: 4600 Series\n\nDescriptor: Excludes 5 leaf front","http://www.truckspring.com/products/Bilstein-4600-Series-Rear-Shock-Absorber-GM__24-002509.aspx","4600 Series","F4-B46-0250-H0,F4-B46-0250-H1","Blue straight","Yellow paint","Monotube","Eye 16mm","Eye 16mm","Bilstein 4600 Series Shock Absorbers and Struts are designed\n\nspecifically to help your truck, van or SUV reach its pinnacle in ride\n\nperformance and handling, while still providing the comfortable ride\n\nthat has come to be expected from the name.\n\nA Bilstein 4600 Series equipped vehicle offers superior control\n\ncompared to conventional alternatives, allowing you to keep cargo secure-from\n\nyour kids to work equipment, mile after mile. Utilizing our patented\n\ndesign, the dampers allow the vehicle to glide over every type of road\n\nsurface you may encounter while maintaining complete command at all\n\ntimes. These dampers are the least expensive and most effective upgrade\n\nto extend the service life of any vehicle out on the road today.\n\n\n\n\n\n\n\n\n\n\n\n\n\n"]
["Bilstein 4600 Series Shock Absorber - Jeep CJ5 CJ8 ;F;B6","Shocks and Struts","24-002509","The Bilstein 24-002509, 4600 Series Shock Absorber are the ideal choice for drivers who want improved handling and stability in their full-size sedans, SUVs and trucks.","http://cart.bilsteinus.com/pdfs/E4-WM5-Y217A00.pdf","http://cart.bilsteinus.com/pdfs/limitedlifetimewarranty.pdf",1978,"Jeep","CJ5 Base","Jeep CJ5 Base 1959 - 1983",null,"Front","Position: Front\n\nDescriptor: Series: 4600 Series\n\nDescriptor: Excludes 5 leaf front","http://www.truckspring.com/products/Bilstein-4600-Series-Rear-Shock-Absorber-GM__24-002509.aspx","4600 Series","F4-B46-0250-H0,F4-B46-0250-H1","Blue straight","Yellow paint","Monotube","Eye 16mm","Eye 16mm","Bilstein 4600 Series Shock Absorbers and Struts are designed\n\nspecifically to help your truck, van or SUV reach its pinnacle in ride\n\nperformance and handling, while still providing the comfortable ride\n\nthat has come to be expected from the name.\n\nA Bilstein 4600 Series equipped vehicle offers superior control\n\ncompared to conventional alternatives, allowing you to keep cargo secure-from\n\nyour kids to work equipment, mile after mile. Utilizing our patented\n\ndesign, the dampers allow the vehicle to glide over every type of road\n\nsurface you may encounter while maintaining complete command at all\n\ntimes. These dampers are the least expensive and most effective upgrade\n\nto extend the service life of any vehicle out on the road today.\n\n\n\n\n\n\n\n\n\n\n\n\n\n"]
["Bilstein 4600 Series Shock Absorber - Jeep CJ5 CJ8 ;F;B6","Shocks and Struts","24-002509","The Bilstein 24-002509, 4600 Series Shock Absorber are the ideal choice for drivers who want improved handling and stability in their full-size sedans, SUVs and trucks.","http://cart.bilsteinus.com/pdfs/E4-WM5-Y217A00.pdf","http://cart.bilsteinus.com/pdfs/limitedlifetimewarranty.pdf",1977,"Jeep","CJ5 Base","Jeep CJ5 Base 1959 - 1983",null,"Front","Position: Front\n\nDescriptor: Series: 4600 Series\n\nDescriptor: Excludes 5 leaf front","http://www.truckspring.com/products/Bilstein-4600-Series-Rear-Shock-Absorber-GM__24-002509.aspx","4600 Series","F4-B46-0250-H0,F4-B46-0250-H1","Blue straight","Yellow paint","Monotube","Eye 16mm","Eye 16mm","Bilstein 4600 Series Shock Absorbers and Struts are designed\n\nspecifically to help your truck, van or SUV reach its pinnacle in ride\n\nperformance and handling, while still providing the comfortable ride\n\nthat has come to be expected from the name.\n\nA Bilstein 4600 Series equipped vehicle offers superior control\n\ncompared to conventional alternatives, allowing you to keep cargo secure-from\n\nyour kids to work equipment, mile after mile. Utilizing our patented\n\ndesign, the dampers allow the vehicle to glide over every type of road\n\nsurface you may encounter while maintaining complete command at all\n\ntimes. These dampers are the least expensive and most effective upgrade\n\nto extend the service life of any vehicle out on the road today.\n\n\n\n\n\n\n\n\n\n\n\n\n\n"]
["Bilstein 4600 Series Shock Absorber - Jeep CJ5 CJ8 ;F;B6","Shocks and Struts","24-002509","The Bilstein 24-002509, 4600 Series Shock Absorber are the ideal choice for drivers who want improved handling and stability in their full-size sedans, SUVs and trucks.","http://cart.bilsteinus.com/pdfs/E4-WM5-Y217A00.pdf","http://cart.bilsteinus.com/pdfs/limitedlifetimewarranty.pdf",1976,"Jeep","CJ5 Base","Jeep CJ5 Base 1959 - 1983",null,"Front","Position: Front\n\nDescriptor: Series: 4600 Series\n\nDescriptor: Excludes 5 leaf front","http://www.truckspring.com/products/Bilstein-4600-Series-Rear-Shock-Absorber-GM__24-002509.aspx","4600 Series","F4-B46-0250-H0,F4-B46-0250-H1","Blue straight","Yellow paint","Monotube","Eye 16mm","Eye 16mm","Bilstein 4600 Series Shock Absorbers and Struts are designed\n\nspecifically to help your truck, van or SUV reach its pinnacle in ride\n\nperformance and handling, while still providing the comfortable ride\n\nthat has come to be expected from the name.\n\nA Bilstein 4600 Series equipped vehicle offers superior control\n\ncompared to conventional alternatives, allowing you to keep cargo secure-from\n\nyour kids to work equipment, mile after mile. Utilizing our patented\n\ndesign, the dampers allow the vehicle to glide over every type of road\n\nsurface you may encounter while maintaining complete command at all\n\ntimes. These dampers are the least expensive and most effective upgrade\n\nto extend the service life of any vehicle out on the road today.\n\n\n\n\n\n\n\n\n\n\n\n\n\n"]
["Bilstein 4600 Series Shock Absorber - Jeep CJ5 CJ8 ;F;B6","Shocks and Struts","24-002509","The Bilstein 24-002509, 4600 Series Shock Absorber are the ideal choice for drivers who want improved handling and stability in their full-size sedans, SUVs and trucks.","http://cart.bilsteinus.com/pdfs/E4-WM5-Y217A00.pdf","http://cart.bilsteinus.com/pdfs/limitedlifetimewarranty.pdf",1975,"Jeep","CJ5 Base","Jeep CJ5 Base 1959 - 1983",null,"Front","Position: Front\n\nDescriptor: Series: 4600 Series\n\nDescriptor: Excludes 5 leaf front","http://www.truckspring.com/products/Bilstein-4600-Series-Rear-Shock-Absorber-GM__24-002509.aspx","4600 Series","F4-B46-0250-H0,F4-B46-0250-H1","Blue straight","Yellow paint","Monotube","Eye 16mm","Eye 16mm","Bilstein 4600 Series Shock Absorbers and Struts are designed\n\nspecifically to help your truck, van or SUV reach its pinnacle in ride\n\nperformance and handling, while still providing the comfortable ride\n\nthat has come to be expected from the name.\n\nA Bilstein 4600 Series equipped vehicle offers superior control\n\ncompared to conventional alternatives, allowing you to keep cargo secure-from\n\nyour kids to work equipment, mile after mile. Utilizing our patented\n\ndesign, the dampers allow the vehicle to glide over every type of road\n\nsurface you may encounter while maintaining complete command at all\n\ntimes. These dampers are the least expensive and most effective upgrade\n\nto extend the service life of any vehicle out on the road today.\n\n\n\n\n\n\n\n\n\n\n\n\n\n"]
["Bilstein 4600 Series Shock Absorber - Jeep CJ5 CJ8 ;F;B6","Shocks and Struts","24-002509","The Bilstein 24-002509, 4600 Series Shock Absorber are the ideal choice for drivers who want improved handling and stability in their full-size sedans, SUVs and trucks.","http://cart.bilsteinus.com/pdfs/E4-WM5-Y217A00.pdf","http://cart.bilsteinus.com/pdfs/limitedlifetimewarranty.pdf",1974,"Jeep","CJ5 Base","Jeep CJ5 Base 1959 - 1983",null,"Front","Position: Front\n\nDescriptor: Series: 4600 Series\n\nDescriptor: Excludes 5 leaf front","http://www.truckspring.com/products/Bilstein-4600-Series-Rear-Shock-Absorber-GM__24-002509.aspx","4600 Series","F4-B46-0250-H0,F4-B46-0250-H1","Blue straight","Yellow paint","Monotube","Eye 16mm","Eye 16mm","Bilstein 4600 Series Shock Absorbers and Struts are designed\n\nspecifically to help your truck, van or SUV reach its pinnacle in ride\n\nperformance and handling, while still providing the comfortable ride\n\nthat has come to be expected from the name.\n\nA Bilstein 4600 Series equipped vehicle offers superior control\n\ncompared to conventional alternatives, allowing you to keep cargo secure-from\n\nyour kids to work equipment, mile after mile. Utilizing our patented\n\ndesign, the dampers allow the vehicle to glide over every type of road\n\nsurface you may encounter while maintaining complete command at all\n\ntimes. These dampers are the least expensive and most effective upgrade\n\nto extend the service life of any vehicle out on the road today.\n\n\n\n\n\n\n\n\n\n\n\n\n\n"]
["Bilstein 4600 Series Shock Absorber - Jeep CJ5 CJ8 ;F;B6","Shocks and Struts","24-002509","The Bilstein 24-002509, 4600 Series Shock Absorber are the ideal choice for drivers who want improved handling and stability in their full-size sedans, SUVs and trucks.","http://cart.bilsteinus.com/pdfs/E4-WM5-Y217A00.pdf","http://cart.bilsteinus.com/pdfs/limitedlifetimewarranty.pdf",1973,"Jeep","CJ5 Base","Jeep CJ5 Base 1959 - 1983",null,"Front","Position: Front\n\nDescriptor: Series: 4600 Series\n\nDescriptor: Excludes 5 leaf front","http://www.truckspring.com/products/Bilstein-4600-Series-Rear-Shock-Absorber-GM__24-002509.aspx","4600 Series","F4-B46-0250-H0,F4-B46-0250-H1","Blue straight","Yellow paint","Monotube","Eye 16mm","Eye 16mm","Bilstein 4600 Series Shock Absorbers and Struts are designed\n\nspecifically to help your truck, van or SUV reach its pinnacle in ride\n\nperformance and handling, while still providing the comfortable ride\n\nthat has come to be expected from the name.\n\nA Bilstein 4600 Series equipped vehicle offers superior control\n\ncompared to conventional alternatives, allowing you to keep cargo secure-from\n\nyour kids to work equipment, mile after mile. Utilizing our patented\n\ndesign, the dampers allow the vehicle to glide over every type of road\n\nsurface you may encounter while maintaining complete command at all\n\ntimes. These dampers are the least expensive and most effective upgrade\n\nto extend the service life of any vehicle out on the road today.\n\n\n\n\n\n\n\n\n\n\n\n\n\n"]
["Bilstein 4600 Series Shock Absorber - Jeep CJ5 CJ8 ;F;B6","Shocks and Struts","24-002509","The Bilstein 24-002509, 4600 Series Shock Absorber are the ideal choice for drivers who want improved handling and stability in their full-size sedans, SUVs and trucks.","http://cart.bilsteinus.com/pdfs/E4-WM5-Y217A00.pdf","http://cart.bilsteinus.com/pdfs/limitedlifetimewarranty.pdf",1972,"Jeep","CJ5 Base","Jeep CJ5 Base 1959 - 1983",null,"Front","Position: Front\n\nDescriptor: Series: 4600 Series\n\nDescriptor: Excludes 5 leaf front","http://www.truckspring.com/products/Bilstein-4600-Series-Rear-Shock-Absorber-GM__24-002509.aspx","4600 Series","F4-B46-0250-H0,F4-B46-0250-H1","Blue straight","Yellow paint","Monotube","Eye 16mm","Eye 16mm","Bilstein 4600 Series Shock Absorbers and Struts are designed\n\nspecifically to help your truck, van or SUV reach its pinnacle in ride\n\nperformance and handling, while still providing the comfortable ride\n\nthat has come to be expected from the name.\n\nA Bilstein 4600 Series equipped vehicle offers superior control\n\ncompared to conventional alternatives, allowing you to keep cargo secure-from\n\nyour kids to work equipment, mile after mile. Utilizing our patented\n\ndesign, the dampers allow the vehicle to glide over every type of road\n\nsurface you may encounter while maintaining complete command at all\n\ntimes. These dampers are the least expensive and most effective upgrade\n\nto extend the service life of any vehicle out on the road today.\n\n\n\n\n\n\n\n\n\n\n\n\n\n"]
["Bilstein 4600 Series Shock Absorber - Jeep CJ5 CJ8 ;F;B6","Shocks and Struts","24-002509","The Bilstein 24-002509, 4600 Series Shock Absorber are the ideal choice for drivers who want improved handling and stability in their full-size sedans, SUVs and trucks.","http://cart.bilsteinus.com/pdfs/E4-WM5-Y217A00.pdf","http://cart.bilsteinus.com/pdfs/limitedlifetimewarranty.pdf",1971,"Jeep","CJ5 Base","Jeep CJ5 Base 1959 - 1983",null,"Front","Position: Front\n\nDescriptor: Series: 4600 Series","http://www.truckspring.com/products/Bilstein-4600-Series-Rear-Shock-Absorber-GM__24-002509.aspx","4600 Series","F4-B46-0250-H0,F4-B46-0250-H1","Blue straight","Yellow paint","Monotube","Eye 16mm","Eye 16mm","Bilstein 4600 Series Shock Absorbers and Struts are designed\n\nspecifically to help your truck, van or SUV reach its pinnacle in ride\n\nperformance and handling, while still providing the comfortable ride\n\nthat has come to be expected from the name.\n\nA Bilstein 4600 Series equipped vehicle offers superior control\n\ncompared to conventional alternatives, allowing you to keep cargo secure-from\n\nyour kids to work equipment, mile after mile. Utilizing our patented\n\ndesign, the dampers allow the vehicle to glide over every type of road\n\nsurface you may encounter while maintaining complete command at all\n\ntimes. These dampers are the least expensive and most effective upgrade\n\nto extend the service life of any vehicle out on the road today.\n\n\n\n\n\n\n\n\n\n\n\n\n\n"]
["Bilstein 4600 Series Shock Absorber - Jeep CJ5 CJ8 ;F;B6","Shocks and Struts","24-002509","The Bilstein 24-002509, 4600 Series Shock Absorber are the ideal choice for drivers who want improved handling and stability in their full-size sedans, SUVs and trucks.","http://cart.bilsteinus.com/pdfs/E4-WM5-Y217A00.pdf","http://cart.bilsteinus.com/pdfs/limitedlifetimewarranty.pdf",1971,"Jeep","CJ5 Base","Jeep CJ5 Base 1959 - 1983",null,"Rear","Position: Rear\n\nDescriptor: Series: 4600 Series","http://www.truckspring.com/products/Bilstein-4600-Series-Rear-Shock-Absorber-GM__24-002509.aspx","4600 Series","F4-B46-0250-H0,F4-B46-0250-H1","Blue straight","Yellow paint","Monotube","Eye 16mm","Eye 16mm","Bilstein 4600 Series Shock Absorbers and Struts are designed\n\nspecifically to help your truck, van or SUV reach its pinnacle in ride\n\nperformance and handling, while still providing the comfortable ride\n\nthat has come to be expected from the name.\n\nA Bilstein 4600 Series equipped vehicle offers superior control\n\ncompared to conventional alternatives, allowing you to keep cargo secure-from\n\nyour kids to work equipment, mile after mile. Utilizing our patented\n\ndesign, the dampers allow the vehicle to glide over every type of road\n\nsurface you may encounter while maintaining complete command at all\n\ntimes. These dampers are the least expensive and most effective upgrade\n\nto extend the service life of any vehicle out on the road today.\n\n\n\n\n\n\n\n\n\n\n\n\n\n"]
["Bilstein 4600 Series Shock Absorber - Jeep CJ5 CJ8 ;F;B6","Shocks and Struts","24-002509","The Bilstein 24-002509, 4600 Series Shock Absorber are the ideal choice for drivers who want improved handling and stability in their full-size sedans, SUVs and trucks.","http://cart.bilsteinus.com/pdfs/E4-WM5-Y217A00.pdf","http://cart.bilsteinus.com/pdfs/limitedlifetimewarranty.pdf",1970,"Jeep","CJ5 Base","Jeep CJ5 Base 1959 - 1983",null,"Front","Position: Front\n\nDescriptor: Series: 4600 Series","http://www.truckspring.com/products/Bilstein-4600-Series-Rear-Shock-Absorber-GM__24-002509.aspx","4600 Series","F4-B46-0250-H0,F4-B46-0250-H1","Blue straight","Yellow paint","Monotube","Eye 16mm","Eye 16mm","Bilstein 4600 Series Shock Absorbers and Struts are designed\n\nspecifically to help your truck, van or SUV reach its pinnacle in ride\n\nperformance and handling, while still providing the comfortable ride\n\nthat has come to be expected from the name.\n\nA Bilstein 4600 Series equipped vehicle offers superior control\n\ncompared to conventional alternatives, allowing you to keep cargo secure-from\n\nyour kids to work equipment, mile after mile. Utilizing our patented\n\ndesign, the dampers allow the vehicle to glide over every type of road\n\nsurface you may encounter while maintaining complete command at all\n\ntimes. These dampers are the least expensive and most effective upgrade\n\nto extend the service life of any vehicle out on the road today.\n\n\n\n\n\n\n\n\n\n\n\n\n\n"]
["Bilstein 4600 Series Shock Absorber - Jeep CJ5 CJ8 ;F;B6","Shocks and Struts","24-002509","The Bilstein 24-002509, 4600 Series Shock Absorber are the ideal choice for drivers who want improved handling and stability in their full-size sedans, SUVs and trucks.","http://cart.bilsteinus.com/pdfs/E4-WM5-Y217A00.pdf","http://cart.bilsteinus.com/pdfs/limitedlifetimewarranty.pdf",1970,"Jeep","CJ5 Base","Jeep CJ5 Base 1959 - 1983",null,"Rear","Position: Rear\n\nDescriptor: Series: 4600 Series","http://www.truckspring.com/products/Bilstein-4600-Series-Rear-Shock-Absorber-GM__24-002509.aspx","4600 Series","F4-B46-0250-H0,F4-B46-0250-H1","Blue straight","Yellow paint","Monotube","Eye 16mm","Eye 16mm","Bilstein 4600 Series Shock Absorbers and Struts are designed\n\nspecifically to help your truck, van or SUV reach its pinnacle in ride\n\nperformance and handling, while still providing the comfortable ride\n\nthat has come to be expected from the name.\n\nA Bilstein 4600 Series equipped vehicle offers superior control\n\ncompared to conventional alternatives, allowing you to keep cargo secure-from\n\nyour kids to work equipment, mile after mile. Utilizing our patented\n\ndesign, the dampers allow the vehicle to glide over every type of road\n\nsurface you may encounter while maintaining complete command at all\n\ntimes. These dampers are the least expensive and most effective upgrade\n\nto extend the service life of any vehicle out on the road today.\n\n\n\n\n\n\n\n\n\n\n\n\n\n"]
["Bilstein 4600 Series Shock Absorber - Jeep CJ5 CJ8 ;F;B6","Shocks and Struts","24-002509","The Bilstein 24-002509, 4600 Series Shock Absorber are the ideal choice for drivers who want improved handling and stability in their full-size sedans, SUVs and trucks.","http://cart.bilsteinus.com/pdfs/E4-WM5-Y217A00.pdf","http://cart.bilsteinus.com/pdfs/limitedlifetimewarranty.pdf",1969,"Jeep","CJ5 Base","Jeep CJ5 Base 1959 - 1983",null,"Front","Position: Front\n\nDescriptor: Series: 4600 Series","http://www.truckspring.com/products/Bilstein-4600-Series-Rear-Shock-Absorber-GM__24-002509.aspx","4600 Series","F4-B46-0250-H0,F4-B46-0250-H1","Blue straight","Yellow paint","Monotube","Eye 16mm","Eye 16mm","Bilstein 4600 Series Shock Absorbers and Struts are designed\n\nspecifically to help your truck, van or SUV reach its pinnacle in ride\n\nperformance and handling, while still providing the comfortable ride\n\nthat has come to be expected from the name.\n\nA Bilstein 4600 Series equipped vehicle offers superior control\n\ncompared to conventional alternatives, allowing you to keep cargo secure-from\n\nyour kids to work equipment, mile after mile. Utilizing our patented\n\ndesign, the dampers allow the vehicle to glide over every type of road\n\nsurface you may encounter while maintaining complete command at all\n\ntimes. These dampers are the least expensive and most effective upgrade\n\nto extend the service life of any vehicle out on the road today.\n\n\n\n\n\n\n\n\n\n\n\n\n\n"]
["Bilstein 4600 Series Shock Absorber - Jeep CJ5 CJ8 ;F;B6","Shocks and Struts","24-002509","The Bilstein 24-002509, 4600 Series Shock Absorber are the ideal choice for drivers who want improved handling and stability in their full-size sedans, SUVs and trucks.","http://cart.bilsteinus.com/pdfs/E4-WM5-Y217A00.pdf","http://cart.bilsteinus.com/pdfs/limitedlifetimewarranty.pdf",1969,"Jeep","CJ5 Base","Jeep CJ5 Base 1959 - 1983",null,"Rear","Position: Rear\n\nDescriptor: Series: 4600 Series","http://www.truckspring.com/products/Bilstein-4600-Series-Rear-Shock-Absorber-GM__24-002509.aspx","4600 Series","F4-B46-0250-H0,F4-B46-0250-H1","Blue straight","Yellow paint","Monotube","Eye 16mm","Eye 16mm","Bilstein 4600 Series Shock Absorbers and Struts are designed\n\nspecifically to help your truck, van or SUV reach its pinnacle in ride\n\nperformance and handling, while still providing the comfortable ride\n\nthat has come to be expected from the name.\n\nA Bilstein 4600 Series equipped vehicle offers superior control\n\ncompared to conventional alternatives, allowing you to keep cargo secure-from\n\nyour kids to work equipment, mile after mile. Utilizing our patented\n\ndesign, the dampers allow the vehicle to glide over every type of road\n\nsurface you may encounter while maintaining complete command at all\n\ntimes. These dampers are the least expensive and most effective upgrade\n\nto extend the service life of any vehicle out on the road today.\n\n\n\n\n\n\n\n\n\n\n\n\n\n"]
["Bilstein 4600 Series Shock Absorber - Jeep CJ5 CJ8 ;F;B6","Shocks and Struts","24-002509","The Bilstein 24-002509, 4600 Series Shock Absorber are the ideal choice for drivers who want improved handling and stability in their full-size sedans, SUVs and trucks.","http://cart.bilsteinus.com/pdfs/E4-WM5-Y217A00.pdf","http://cart.bilsteinus.com/pdfs/limitedlifetimewarranty.pdf",1968,"Jeep","CJ5 Base","Jeep CJ5 Base 1959 - 1983",null,"Front","Position: Front\n\nDescriptor: Series: 4600 Series","http://www.truckspring.com/products/Bilstein-4600-Series-Rear-Shock-Absorber-GM__24-002509.aspx","4600 Series","F4-B46-0250-H0,F4-B46-0250-H1","Blue straight","Yellow paint","Monotube","Eye 16mm","Eye 16mm","Bilstein 4600 Series Shock Absorbers and Struts are designed\n\nspecifically to help your truck, van or SUV reach its pinnacle in ride\n\nperformance and handling, while still providing the comfortable ride\n\nthat has come to be expected from the name.\n\nA Bilstein 4600 Series equipped vehicle offers superior control\n\ncompared to conventional alternatives, allowing you to keep cargo secure-from\n\nyour kids to work equipment, mile after mile. Utilizing our patented\n\ndesign, the dampers allow the vehicle to glide over every type of road\n\nsurface you may encounter while maintaining complete command at all\n\ntimes. These dampers are the least expensive and most effective upgrade\n\nto extend the service life of any vehicle out on the road today.\n\n\n\n\n\n\n\n\n\n\n\n\n\n"]
["Bilstein 4600 Series Shock Absorber - Jeep CJ5 CJ8 ;F;B6","Shocks and Struts","24-002509","The Bilstein 24-002509, 4600 Series Shock Absorber are the ideal choice for drivers who want improved handling and stability in their full-size sedans, SUVs and trucks.","http://cart.bilsteinus.com/pdfs/E4-WM5-Y217A00.pdf","http://cart.bilsteinus.com/pdfs/limitedlifetimewarranty.pdf",1968,"Jeep","CJ5 Base","Jeep CJ5 Base 1959 - 1983",null,"Rear","Position: Rear\n\nDescriptor: Series: 4600 Series","http://www.truckspring.com/products/Bilstein-4600-Series-Rear-Shock-Absorber-GM__24-002509.aspx","4600 Series","F4-B46-0250-H0,F4-B46-0250-H1","Blue straight","Yellow paint","Monotube","Eye 16mm","Eye 16mm","Bilstein 4600 Series Shock Absorbers and Struts are designed\n\nspecifically to help your truck, van or SUV reach its pinnacle in ride\n\nperformance and handling, while still providing the comfortable ride\n\nthat has come to be expected from the name.\n\nA Bilstein 4600 Series equipped vehicle offers superior control\n\ncompared to conventional alternatives, allowing you to keep cargo secure-from\n\nyour kids to work equipment, mile after mile. Utilizing our patented\n\ndesign, the dampers allow the vehicle to glide over every type of road\n\nsurface you may encounter while maintaining complete command at all\n\ntimes. These dampers are the least expensive and most effective upgrade\n\nto extend the service life of any vehicle out on the road today.\n\n\n\n\n\n\n\n\n\n\n\n\n\n"]
["Bilstein 4600 Series Shock Absorber - Jeep CJ5 CJ8 ;F;B6","Shocks and Struts","24-002509","The Bilstein 24-002509, 4600 Series Shock Absorber are the ideal choice for drivers who want improved handling and stability in their full-size sedans, SUVs and trucks.","http://cart.bilsteinus.com/pdfs/E4-WM5-Y217A00.pdf","http://cart.bilsteinus.com/pdfs/limitedlifetimewarranty.pdf",1967,"Jeep","CJ5 Base","Jeep CJ5 Base 1959 - 1983",null,"Front","Position: Front\n\nDescriptor: Series: 4600 Series","http://www.truckspring.com/products/Bilstein-4600-Series-Rear-Shock-Absorber-GM__24-002509.aspx","4600 Series","F4-B46-0250-H0,F4-B46-0250-H1","Blue straight","Yellow paint","Monotube","Eye 16mm","Eye 16mm","Bilstein 4600 Series Shock Absorbers and Struts are designed\n\nspecifically to help your truck, van or SUV reach its pinnacle in ride\n\nperformance and handling, while still providing the comfortable ride\n\nthat has come to be expected from the name.\n\nA Bilstein 4600 Series equipped vehicle offers superior control\n\ncompared to conventional alternatives, allowing you to keep cargo secure-from\n\nyour kids to work equipment, mile after mile. Utilizing our patented\n\ndesign, the dampers allow the vehicle to glide over every type of road\n\nsurface you may encounter while maintaining complete command at all\n\ntimes. These dampers are the least expensive and most effective upgrade\n\nto extend the service life of any vehicle out on the road today.\n\n\n\n\n\n\n\n\n\n\n\n\n\n"]
["Bilstein 4600 Series Shock Absorber - Jeep CJ5 CJ8 ;F;B6","Shocks and Struts","24-002509","The Bilstein 24-002509, 4600 Series Shock Absorber are the ideal choice for drivers who want improved handling and stability in their full-size sedans, SUVs and trucks.","http://cart.bilsteinus.com/pdfs/E4-WM5-Y217A00.pdf","http://cart.bilsteinus.com/pdfs/limitedlifetimewarranty.pdf",1967,"Jeep","CJ5 Base","Jeep CJ5 Base 1959 - 1983",null,"Rear","Position: Rear\n\nDescriptor: Series: 4600 Series","http://www.truckspring.com/products/Bilstein-4600-Series-Rear-Shock-Absorber-GM__24-002509.aspx","4600 Series","F4-B46-0250-H0,F4-B46-0250-H1","Blue straight","Yellow paint","Monotube","Eye 16mm","Eye 16mm","Bilstein 4600 Series Shock Absorbers and Struts are designed\n\nspecifically to help your truck, van or SUV reach its pinnacle in ride\n\nperformance and handling, while still providing the comfortable ride\n\nthat has come to be expected from the name.\n\nA Bilstein 4600 Series equipped vehicle offers superior control\n\ncompared to conventional alternatives, allowing you to keep cargo secure-from\n\nyour kids to work equipment, mile after mile. Utilizing our patented\n\ndesign, the dampers allow the vehicle to glide over every type of road\n\nsurface you may encounter while maintaining complete command at all\n\ntimes. These dampers are the least expensive and most effective upgrade\n\nto extend the service life of any vehicle out on the road today.\n\n\n\n\n\n\n\n\n\n\n\n\n\n"]
["Bilstein 4600 Series Shock Absorber - Jeep CJ5 CJ8 ;F;B6","Shocks and Struts","24-002509","The Bilstein 24-002509, 4600 Series Shock Absorber are the ideal choice for drivers who want improved handling and stability in their full-size sedans, SUVs and trucks.","http://cart.bilsteinus.com/pdfs/E4-WM5-Y217A00.pdf","http://cart.bilsteinus.com/pdfs/limitedlifetimewarranty.pdf",1966,"Jeep","CJ5 Base","Jeep CJ5 Base 1959 - 1983",null,"Front","Position: Front\n\nDescriptor: Series: 4600 Series","http://www.truckspring.com/products/Bilstein-4600-Series-Rear-Shock-Absorber-GM__24-002509.aspx","4600 Series","F4-B46-0250-H0,F4-B46-0250-H1","Blue straight","Yellow paint","Monotube","Eye 16mm","Eye 16mm","Bilstein 4600 Series Shock Absorbers and Struts are designed\n\nspecifically to help your truck, van or SUV reach its pinnacle in ride\n\nperformance and handling, while still providing the comfortable ride\n\nthat has come to be expected from the name.\n\nA Bilstein 4600 Series equipped vehicle offers superior control\n\ncompared to conventional alternatives, allowing you to keep cargo secure-from\n\nyour kids to work equipment, mile after mile. Utilizing our patented\n\ndesign, the dampers allow the vehicle to glide over every type of road\n\nsurface you may encounter while maintaining complete command at all\n\ntimes. These dampers are the least expensive and most effective upgrade\n\nto extend the service life of any vehicle out on the road today.\n\n\n\n\n\n\n\n\n\n\n\n\n\n"]
["Bilstein 4600 Series Shock Absorber - Jeep CJ5 CJ8 ;F;B6","Shocks and Struts","24-002509","The Bilstein 24-002509, 4600 Series Shock Absorber are the ideal choice for drivers who want improved handling and stability in their full-size sedans, SUVs and trucks.","http://cart.bilsteinus.com/pdfs/E4-WM5-Y217A00.pdf","http://cart.bilsteinus.com/pdfs/limitedlifetimewarranty.pdf",1966,"Jeep","CJ5 Base","Jeep CJ5 Base 1959 - 1983",null,"Rear","Position: Rear\n\nDescriptor: Series: 4600 Series","http://www.truckspring.com/products/Bilstein-4600-Series-Rear-Shock-Absorber-GM__24-002509.aspx","4600 Series","F4-B46-0250-H0,F4-B46-0250-H1","Blue straight","Yellow paint","Monotube","Eye 16mm","Eye 16mm","Bilstein 4600 Series Shock Absorbers and Struts are designed\n\nspecifically to help your truck, van or SUV reach its pinnacle in ride\n\nperformance and handling, while still providing the comfortable ride\n\nthat has come to be expected from the name.\n\nA Bilstein 4600 Series equipped vehicle offers superior control\n\ncompared to conventional alternatives, allowing you to keep cargo secure-from\n\nyour kids to work equipment, mile after mile. Utilizing our patented\n\ndesign, the dampers allow the vehicle to glide over every type of road\n\nsurface you may encounter while maintaining complete command at all\n\ntimes. These dampers are the least expensive and most effective upgrade\n\nto extend the service life of any vehicle out on the road today.\n\n\n\n\n\n\n\n\n\n\n\n\n\n"]
["Bilstein 4600 Series Shock Absorber - Jeep CJ5 CJ8 ;F;B6","Shocks and Struts","24-002509","The Bilstein 24-002509, 4600 Series Shock Absorber are the ideal choice for drivers who want improved handling and stability in their full-size sedans, SUVs and trucks.","http://cart.bilsteinus.com/pdfs/E4-WM5-Y217A00.pdf","http://cart.bilsteinus.com/pdfs/limitedlifetimewarranty.pdf",1965,"Jeep","CJ5 Base","Jeep CJ5 Base 1959 - 1983",null,"Front","Position: Front\n\nDescriptor: Series: 4600 Series","http://www.truckspring.com/products/Bilstein-4600-Series-Rear-Shock-Absorber-GM__24-002509.aspx","4600 Series","F4-B46-0250-H0,F4-B46-0250-H1","Blue straight","Yellow paint","Monotube","Eye 16mm","Eye 16mm","Bilstein 4600 Series Shock Absorbers and Struts are designed\n\nspecifically to help your truck, van or SUV reach its pinnacle in ride\n\nperformance and handling, while still providing the comfortable ride\n\nthat has come to be expected from the name.\n\nA Bilstein 4600 Series equipped vehicle offers superior control\n\ncompared to conventional alternatives, allowing you to keep cargo secure-from\n\nyour kids to work equipment, mile after mile. Utilizing our patented\n\ndesign, the dampers allow the vehicle to glide over every type of road\n\nsurface you may encounter while maintaining complete command at all\n\ntimes. These dampers are the least expensive and most effective upgrade\n\nto extend the service life of any vehicle out on the road today.\n\n\n\n\n\n\n\n\n\n\n\n\n\n"]
["Bilstein 4600 Series Shock Absorber - Jeep CJ5 CJ8 ;F;B6","Shocks and Struts","24-002509","The Bilstein 24-002509, 4600 Series Shock Absorber are the ideal choice for drivers who want improved handling and stability in their full-size sedans, SUVs and trucks.","http://cart.bilsteinus.com/pdfs/E4-WM5-Y217A00.pdf","http://cart.bilsteinus.com/pdfs/limitedlifetimewarranty.pdf",1965,"Jeep","CJ5 Base","Jeep CJ5 Base 1959 - 1983",null,"Rear","Position: Rear\n\nDescriptor: Series: 4600 Series","http://www.truckspring.com/products/Bilstein-4600-Series-Rear-Shock-Absorber-GM__24-002509.aspx","4600 Series","F4-B46-0250-H0,F4-B46-0250-H1","Blue straight","Yellow paint","Monotube","Eye 16mm","Eye 16mm","Bilstein 4600 Series Shock Absorbers and Struts are designed\n\nspecifically to help your truck, van or SUV reach its pinnacle in ride\n\nperformance and handling, while still providing the comfortable ride\n\nthat has come to be expected from the name.\n\nA Bilstein 4600 Series equipped vehicle offers superior control\n\ncompared to conventional alternatives, allowing you to keep cargo secure-from\n\nyour kids to work equipment, mile after mile. Utilizing our patented\n\ndesign, the dampers allow the vehicle to glide over every type of road\n\nsurface you may encounter while maintaining complete command at all\n\ntimes. These dampers are the least expensive and most effective upgrade\n\nto extend the service life of any vehicle out on the road today.\n\n\n\n\n\n\n\n\n\n\n\n\n\n"]
["Bilstein 4600 Series Shock Absorber - Jeep CJ5 CJ8 ;F;B6","Shocks and Struts","24-002509","The Bilstein 24-002509, 4600 Series Shock Absorber are the ideal choice for drivers who want improved handling and stability in their full-size sedans, SUVs and trucks.","http://cart.bilsteinus.com/pdfs/E4-WM5-Y217A00.pdf","http://cart.bilsteinus.com/pdfs/limitedlifetimewarranty.pdf",1964,"Jeep","CJ5 Base","Jeep CJ5 Base 1959 - 1983",null,"Rear","Position: Rear\n\nDescriptor: Series: 4600 Series","http://www.truckspring.com/products/Bilstein-4600-Series-Rear-Shock-Absorber-GM__24-002509.aspx","4600 Series","F4-B46-0250-H0,F4-B46-0250-H1","Blue straight","Yellow paint","Monotube","Eye 16mm","Eye 16mm","Bilstein 4600 Series Shock Absorbers and Struts are designed\n\nspecifically to help your truck, van or SUV reach its pinnacle in ride\n\nperformance and handling, while still providing the comfortable ride\n\nthat has come to be expected from the name.\n\nA Bilstein 4600 Series equipped vehicle offers superior control\n\ncompared to conventional alternatives, allowing you to keep cargo secure-from\n\nyour kids to work equipment, mile after mile. Utilizing our patented\n\ndesign, the dampers allow the vehicle to glide over every type of road\n\nsurface you may encounter while maintaining complete command at all\n\ntimes. These dampers are the least expensive and most effective upgrade\n\nto extend the service life of any vehicle out on the road today.\n\n\n\n\n\n\n\n\n\n\n\n\n\n"]
[]
[null,null,null,null,null,null,null,null,null,null,null,"Front"]
[null,null,null,null,null,null,null,null,null,null,null,"Rear"]